fUSD/lending_fUSD_20250814
["ID","MTS","AMOUNT","RATE_DAILY","PERIOD"]
[379229680,1755199852437,-267.103179,0.00027397,7]
[379229681,1755199852446,-267.103179,0.00027397,7]
[379229682,1755199852455,-400.0,0.00027397,2]
[379229683,1755199852465,-1266.46,0.00027397,2]
[379229684,1755199852474,-1157.7,0.00027397,2]
[379229685,1755199852483,-552.93,0.00027397,2]
[379229686,1755199852493,-772.465308,0.00027397,7]
[379229687,1755199852502,-772.465308,0.00027397,7]
[379229688,1755199852512,-772.465308,0.00027397,7]
[379229689,1755199852521,-772.465308,0.00027397,7]
[379229690,1755199852530,-772.465308,0.00027397,7]
[379229691,1755199852540,-772.465308,0.00027397,7]
[379229692,1755199852550,-816.02,0.00027397,2]
[379229693,1755199852559,-525.91,0.00027397,2]
[379229694,1755199852569,-400.0,0.00027397,2]
[379229695,1755199852579,-649.54,0.00027397,2]
[379229696,1755199852588,-772.465308,0.00027397,7]
[379229697,1755199852597,-400.0,0.00027397,2]
[379229698,1755199852606,-772.465308,0.00027397,7]
[379229699,1755199852616,-772.465308,0.00027397,7]
[379229700,1755199852626,-539.78,0.00027397,2]
[379229701,1755199852635,-772.465308,0.00027397,7]
[379229702,1755199852644,-772.465308,0.00027397,7]
[379229703,1755199852654,-772.465308,0.00027397,7]
[379229704,1755199852663,-400.0,0.00027397,2]
[379229705,1755199852673,-400.0,0.00027397,2]
[379229706,1755199852682,-400.0,0.00027397,2]
[379229707,1755199852692,-2872.18,0.00027397,2]
[379229708,1755199852701,-906.31,0.00027397,2]
[379229709,1755199852711,-677.87,0.00027397,2]
[379229710,1755199852720,-510.56878289,0.00027397,2]
[379229711,1755199852729,-3501.21,0.00027397,2]
[379229712,1755199852739,-460.0,0.00027397,2]
[379229713,1755199852748,-1854.2,0.00027397,2]
[379229714,1755199852758,-400.0,0.00027397,2]
[379229715,1755199852768,-522.5,0.00027397,2]
[379229716,1755199852777,-500.0,0.00027397,2]
[379229717,1755199852786,-500.0,0.00027397,2]
[379229718,1755199852795,-400.0,0.00027397,2]
[379229719,1755199852805,-500.0,0.00027397,2]
[379229720,1755199852815,-500.0,0.00027397,2]
[379229721,1755199852824,-500.0,0.00027397,2]
[379229722,1755199852834,-500.0,0.00027397,2]
[379229723,1755199852843,-400.0,0.00027397,2]
[379229724,1755199852852,-500.0,0.00027397,2]
[379229725,1755199852861,-500.0,0.00027397,2]
[379229726,1755199852870,-400.0,0.00027397,2]
[379229727,1755199852880,-500.0,0.00027397,2]
[379229728,1755199852889,-400.0,0.00027397,2]
[379229729,1755199852898,-400.0,0.00027397,2]
[379229730,1755199852907,-500.0,0.00027397,2]
[379229731,1755199852916,-2502.0,0.00027397,2]
[379229732,1755199852926,-852.25,0.00027397,2]
[379229733,1755199852935,-489.01,0.00027397,2]
[379229734,1755199852945,-500.0,0.00027397,2]
[379229735,1755199852954,-548.94943522,0.00027397,2]
[379229736,1755199852963,-1433.89,0.00027397,2]
[379229737,1755199852972,-794.36,0.00027397,2]
[379229738,1755199852981,-921.44,0.00027397,2]
[379229739,1755199852990,-530.39117,0.00027397,2]
[379229740,1755199852999,-400.0,0.00027397,2]
[379229741,1755199853008,-2842.37,0.00027397,2]
[379229742,1755199853017,-512.88,0.00027397,2]
[379229743,1755199853027,-2884.17,0.00027397,2]
[379229744,1755199853036,-1936.31,0.00027397,2]
[379229745,1755199853046,-400.0,0.00027397,2]
[379229746,1755199853055,-1937.78,0.00027397,2]
[379229747,1755199853066,-400.0,0.00027397,2]
[379229748,1755199853075,-400.0,0.00027397,2]
[379229749,1755199853084,-473.44,0.00027397,2]
[379229750,1755199853093,-1689.96,0.00027397,2]
[379229751,1755199853103,-400.0,0.00027397,2]
[379229752,1755199853112,-400.0,0.00027397,2]
[379229753,1755199853121,-400.0,0.00027397,2]
[379229754,1755199853130,-400.0,0.00027397,2]
[379229755,1755199853139,-400.0,0.00027397,2]
[379229756,1755199853149,-400.0,0.00027397,2]
[379229757,1755199853158,-400.0,0.00027397,2]
[379229758,1755199853167,-400.0,0.00027397,2]
[379229759,1755199853176,-400.0,0.00027397,2]
[379229760,1755199853185,-840.78,0.00027397,2]
[379229761,1755199853195,-489.77,0.00027397,2]
[379229762,1755199853204,-400.0,0.00027397,2]
[379229763,1755199853214,-349.9431,0.00027397,7]
[379229764,1755199853223,-400.0,0.00027397,2]
[379229765,1755199853233,-349.9431,0.00027397,7]
[379229766,1755199853242,-349.9431,0.00027397,7]
[379229767,1755199853252,-400.0,0.00027397,2]
[379229768,1755199853263,-400.0,0.00027397,2]
[379229769,1755199853273,-349.9431,0.00027397,7]
[379229770,1755199853283,-400.0,0.00027397,2]
[379229771,1755199853293,-400.0,0.00027397,2]
[379229772,1755199853302,-704.41,0.00027397,2]
[379229773,1755199853315,-3579.92,0.00027397,2]
[379229774,1755199853325,-1547.01,0.00027397,2]
[379229775,1755199853335,-349.9431,0.00027397,7]
[379229776,1755199853348,-349.9431,0.00027397,7]
[379229777,1755199853357,-349.9431,0.00027397,7]
[379229778,1755199853367,-664.68,0.00027397,2]
[379229779,1755199853376,-825.36,0.00027397,2]
[379229780,1755199853385,-349.9431,0.00027397,7]
[379229781,1755199853395,-250.0,0.00027397,2]
[379229782,1755199853404,-400.0,0.00027397,2]
[379229783,1755199853413,-400.0,0.00027397,2]
[379229784,1755199853423,-421.65,0.00027397,2]
[379229785,1755199853432,-453.541334,0.00027397,7]
[379229786,1755199853443,-453.541334,0.00027397,7]
[379229787,1755199853453,-453.541334,0.00027397,7]
[379229788,1755199853462,-400.0,0.00027397,2]
[379229789,1755199853472,-400.0,0.00027397,2]
[379229790,1755199853484,-453.541334,0.00027397,7]
[379229791,1755199853494,-400.0,0.00027397,2]
[379229792,1755199853504,-2754.6,0.00027397,2]
[379229793,1755199853513,-453.541334,0.00027397,7]
[379229794,1755199853523,-400.0,0.00027397,2]
[379229795,1755199853532,-400.0,0.00027397,2]
[379229796,1755199853541,-453.541334,0.00027397,7]
[379229797,1755199853551,-400.0,0.00027397,2]
[379229798,1755199853560,-453.541334,0.00027397,7]
[379229799,1755199853570,-400.0,0.00027397,2]
[379229800,1755199853579,-453.541334,0.00027397,7]
[379229801,1755199853588,-540.75868278,0.00027397,2]
[379229802,1755199853597,-400.0,0.00027397,2]
[379229803,1755199853607,-742.77,0.00027397,2]
[379229804,1755199853616,-1910.53,0.00027397,2]
[379229805,1755199853626,-871.42,0.00027397,2]
[379229806,1755199853636,-1460.54,0.00027397,2]
[379229807,1755199853646,-400.0,0.00027397,2]
[379229808,1755199853655,-400.0,0.00027397,2]
[379229809,1755199853664,-1622.0,0.00027397,2]
[379229810,1755199853673,-400.0,0.00027397,2]
[379229811,1755199853683,-674.68,0.00027397,2]
[379229812,1755199853691,-2294.35,0.00027397,2]
[379229813,1755199853700,-400.0,0.00027397,2]
[379229814,1755199853710,-907.42,0.00027397,2]
[379229815,1755199853719,-579.69,0.00027397,2]
[379229816,1755199853728,-583.36,0.00027397,2]
[379229817,1755199853738,-400.0,0.00027397,2]
[379229818,1755199853747,-400.0,0.00027397,2]
[379229819,1755199853756,-400.0,0.00027397,2]
[379229820,1755199853765,-400.0,0.00027397,2]
[379229821,1755199853774,-681.82,0.00027397,2]
[379229822,1755199853783,-151.0,0.00027397,7]
[379229823,1755199853793,-607.75,0.00027397,2]
[379229824,1755199853802,-151.0,0.00027397,7]
[379229825,1755199853811,-151.0,0.00027397,7]
[379229826,1755199853822,-400.0,0.00027397,2]
[379229827,1755199853831,-1774.39,0.00027397,2]
[379229828,1755199853841,-400.0,0.00027397,2]
[379229829,1755199853850,-816.36,0.00027397,2]
[379229830,1755199853859,-400.0,0.00027397,2]
[379229831,1755199853869,-1186.63,0.00027397,2]
[379229832,1755199853878,-948.64,0.00027397,2]
[379229833,1755199853887,-151.0,0.00027397,7]
[379229834,1755199853896,-400.0,0.00027397,2]
[379229835,1755199853905,-151.0,0.00027397,7]
[379229836,1755199853914,-151.0,0.00027397,7]
[379229837,1755199853923,-400.0,0.00027397,2]
[379229838,1755199853932,-2630.831972,0.00027397,7]
[379229839,1755199853941,-2630.831972,0.00027397,7]
[379229840,1755199853951,-2630.831972,0.00027397,7]
[379229841,1755199853959,-2630.831972,0.00027397,7]
[379229842,1755199853969,-1187.67,0.00027397,2]
[379229843,1755199853978,-976.62,0.00027397,2]
[379229844,1755199853987,-400.0,0.00027397,2]
[379229845,1755199853996,-400.0,0.00027397,2]
[379229846,1755199854005,-400.0,0.00027397,2]
[379229847,1755199854014,-2630.831972,0.00027397,7]
[379229848,1755199854024,-2229.88,0.00027397,2]
[379229849,1755199854033,-2630.831972,0.00027397,7]
[379229850,1755199854042,-400.0,0.00027397,2]
[379229851,1755199854051,-2630.831972,0.00027397,7]
[379229852,1755199854060,-2630.831972,0.00027397,7]
[379229853,1755199854070,-400.0,0.00027397,2]
[379229854,1755199854079,-400.0,0.00027397,2]
[379229855,1755199854088,-400.0,0.00027397,2]
[379229856,1755199854097,-400.0,0.00027397,2]
[379229857,1755199854107,-200.0,0.00027397,2]
[379229858,1755199854119,-200.0,0.00027397,2]
[379229859,1755199854129,-653.13,0.00027397,2]
[379229860,1755199854139,-200.0,0.00027397,2]
[379229861,1755199854149,-151.0,0.00027397,7]
[379229862,1755199854159,-288.912879,0.00027397,2]
[379229863,1755199854169,-151.0,0.00027397,7]
[379229864,1755199854178,-151.0,0.00027397,7]
[379229865,1755199854187,-780.09,0.00027397,2]
[379229866,1755199854197,-151.0,0.00027397,7]
[379229867,1755199854206,-151.0,0.00027397,7]
[379229868,1755199854215,-151.0,0.00027397,7]
[379229869,1755199854224,-400.0,0.00027397,2]
[379229870,1755199854233,-400.0,0.00027397,2]
[379229871,1755199854243,-753.26,0.00027397,2]
[379229872,1755199854252,-746.44,0.00027397,2]
[379229873,1755199854261,-3536.72,0.00027397,2]
[379229874,1755199854272,-1368.58,0.00027397,2]
[379229875,1755199854282,-151.0,0.00027397,7]
[379229876,1755199854291,-400.0,0.00027397,2]
[379229877,1755199854300,-152.971358,0.00027397,7]
[379229878,1755199854311,-400.0,0.00027397,2]
[379229879,1755199854322,-400.0,0.00027397,2]
[379229880,1755199854332,-1878.51,0.00027397,2]
[379229881,1755199854342,-1425.67,0.00027397,2]
[379229882,1755199854351,-540.42,0.00027397,2]
[379229883,1755199854360,-1874.6,0.00027397,2]
[379229884,1755199854369,-400.0,0.00027397,2]
[379229885,1755199854379,-1369.06,0.00027397,2]
[379229886,1755199854388,-556.31,0.00027397,2]
[379229887,1755199854398,-2132.28,0.00027397,2]
[379229888,1755199854407,-1121.11,0.00027397,2]
[379229889,1755199854416,-400.0,0.00027397,2]
[379229890,1755199854425,-400.0,0.00027397,2]
[379229891,1755199854435,-3063.12,0.00027397,2]
[379229892,1755199854444,-2724.55,0.00027397,2]
[379229893,1755199854453,-400.0,0.00027397,2]
[379229894,1755199854462,-968.56,0.00027397,2]
[379229895,1755199854471,-400.0,0.00027397,2]
[379229896,1755199854480,-400.0,0.00027397,2]
[379229897,1755199854489,-2184.45,0.00027397,2]
[379229898,1755199854498,-776.2,0.00027397,2]
[379229899,1755199854508,-1266.9,0.00027397,2]
[379229900,1755199854517,-1092.03,0.00027397,2]
[379229901,1755199854526,-400.0,0.00027397,2]
[379229902,1755199854536,-400.0,0.00027397,2]
[379229903,1755199854546,-1160.51,0.00027397,2]
[379229904,1755199854556,-400.0,0.00027397,2]
[379229905,1755199854568,-400.0,0.00027397,2]
[379229906,1755199854577,-1636.75,0.00027397,2]
[379229907,1755199854586,-1069.78,0.00027397,2]
[379229908,1755199854595,-1127.45,0.00027397,2]
[379229909,1755199854604,-576.69,0.00027397,2]
[379229910,1755199854613,-2182.31,0.00027397,2]
[379229911,1755199854624,-400.0,0.00027397,2]
[379229912,1755199854633,-542.99,0.00027397,2]
[379229913,1755199854642,-440.22,0.00027397,2]
[379229914,1755199854652,-186.330195,0.00027397,7]
[379229915,1755199854661,-830.9,0.00027397,2]
[379229916,1755199854670,-400.0,0.00027397,2]
[379229917,1755199854680,-937.65,0.00027397,2]
[379229918,1755199854689,-1137.77,0.00027397,2]
[379229919,1755199854699,-400.0,0.00027397,2]
[379229920,1755199854708,-1018.61,0.00027397,2]
[379229921,1755199854718,-400.0,0.00027397,2]
[379229922,1755199854727,-400.0,0.00027397,2]
[379229923,1755199854736,-400.0,0.00027397,2]
[379229924,1755199854745,-400.0,0.00027397,2]
[379229925,1755199854754,-400.0,0.00027397,2]
[379229926,1755199854763,-2135.45,0.00027397,2]
[379229927,1755199854772,-400.0,0.00027397,2]
[379229928,1755199854782,-444.86,0.00027397,2]
[379229929,1755199854791,-400.0,0.00027397,2]
[379229930,1755199854800,-2211.11,0.00027397,2]
[379229931,1755199854809,-400.0,0.00027397,2]
[379229932,1755199854818,-400.0,0.00027397,2]
[379229933,1755199854827,-400.0,0.00027397,2]
[379229934,1755199854836,-400.0,0.00027397,2]
[379229935,1755199854845,-2111.03,0.00027397,2]
[379229936,1755199854855,-400.0,0.00027397,2]
[379229937,1755199854863,-546.6,0.00027397,2]
[379229938,1755199854873,-5099.000859,0.00027397,7]
[379229939,1755199854882,-5099.000859,0.00027397,7]
[379229940,1755199854891,-400.0,0.00027397,2]
[379229941,1755199854901,-5099.000859,0.00027397,7]
[379229942,1755199854910,-151.0,0.00027397,7]
[379229943,1755199854920,-5099.000859,0.00027397,7]
[379229944,1755199854929,-151.0,0.00027397,7]
[379229945,1755199854939,-151.0,0.00027397,7]
[379229946,1755199854948,-151.0,0.00027397,7]
[379229947,1755199854957,-5099.000859,0.00027397,7]
[379229948,1755199854966,-400.0,0.00027397,2]
[379229949,1755199854975,-2361.53,0.00027397,2]
[379229950,1755199854984,-567.52,0.00027397,2]
[379229951,1755199854993,-400.0,0.00027397,2]
[379229952,1755199855003,-898.88,0.00027397,2]
[379229953,1755199855012,-447.36,0.00027397,2]
[379229954,1755199855021,-5099.000859,0.00027397,7]
[379229955,1755199855030,-400.0,0.00027397,2]
[379229956,1755199855039,-468.59,0.00027397,2]
[379229957,1755199855048,-5099.000859,0.00027397,7]
[379229958,1755199855057,-400.0,0.00027397,2]
[379229959,1755199855067,-5099.000859,0.00027397,7]
[379229960,1755199855076,-5099.000859,0.00027397,7]
[379229961,1755199855085,-5099.000859,0.00027397,7]
[379229962,1755199855094,-400.0,0.00027397,2]
[379229963,1755199855103,-1031.5,0.00027397,2]
[379229964,1755199855112,-2244.67,0.00027397,2]
[379229965,1755199855121,-291.14393168,0.00027397,2]
[379229966,1755199855130,-400.0,0.00027397,2]
[379229967,1755199855139,-1987.82,0.00027397,2]
[379229968,1755199855148,-400.0,0.00027397,2]
[379229969,1755199855158,-2439.07,0.00027397,2]
[379229970,1755199855167,-193.58616689,0.00027397,2]
[379229971,1755199855176,-400.0,0.00027397,2]
[379229972,1755199855186,-400.0,0.00027397,2]
[379229973,1755199855195,-599.51,0.00027397,2]
[379229974,1755199855204,-3006.81,0.00027397,2]
[379229975,1755199855213,-3006.81,0.00027397,2]
[379229976,1755199855222,-1158.97,0.00027397,2]
[379229977,1755199855232,-3006.81,0.00027397,2]
[379229978,1755199855241,-3006.81,0.00027397,2]
[379229979,1755199855250,-3006.81,0.00027397,2]
[379229980,1755199855261,-3006.81,0.00027397,2]
[379229981,1755199855272,-400.0,0.00027397,2]
[379229982,1755199855281,-3006.81,0.00027397,2]
[379229983,1755199855291,-3006.81,0.00027397,2]
[379229984,1755199855300,-3006.81,0.00027397,2]
[379229985,1755199855311,-3006.81,0.00027397,2]
[379229986,1755199855321,-1173.59,0.00027397,2]
[379229987,1755199855331,-3006.81,0.00027397,2]
[379229988,1755199855340,-400.0,0.00027397,2]
[379229989,1755199855349,-1038.58,0.00027397,2]
[379229990,1755199855358,-3006.81,0.00027397,2]
[379229991,1755199855368,-3006.81,0.00027397,2]
[379229992,1755199855377,-566.96,0.00027397,2]
[379229993,1755199855386,-3006.81,0.00027397,2]
[379229994,1755199855395,-3006.81,0.00027397,2]
[379229995,1755199855404,-3006.81,0.00027397,2]
[379229996,1755199855413,-3006.81,0.00027397,2]
[379229997,1755199855423,-3006.81,0.00027397,2]
[379229998,1755199855432,-3006.81,0.00027397,2]
[379229999,1755199855441,-952.74,0.00027397,2]
[379230000,1755199855451,-400.0,0.00027397,2]
[379230001,1755199855460,-151.0,0.00027397,7]
[379230002,1755199855469,-482.02,0.00027397,2]
[379230003,1755199855478,-151.0,0.00027397,7]
[379230004,1755199855488,-151.0,0.00027397,7]
[379230005,1755199855496,-400.0,0.00027397,2]
[379230006,1755199855505,-151.0,0.00027397,7]
[379230007,1755199855514,-400.0,0.00027397,2]
[379230008,1755199855523,-400.0,0.00027397,2]
[379230009,1755199855532,-400.0,0.00027397,2]
[379230010,1755199855542,-400.0,0.00027397,2]
[379230011,1755199855550,-246.066779,0.00027397,7]
[379230012,1755199855559,-400.0,0.00027397,2]
[379230013,1755199855570,-581.76,0.00027397,2]
[379230014,1755199855579,-290.7061,0.00027397,7]
[379230015,1755199855588,-290.7061,0.00027397,7]
[379230016,1755199855597,-2201.35,0.00027397,2]
[379230017,1755199855606,-420.73,0.00027397,2]
[379230018,1755199855615,-290.7061,0.00027397,7]
[379230019,1755199855625,-290.7061,0.00027397,7]
[379230020,1755199855634,-401.29758067,0.00027397,2]
[379230021,1755199855643,-1298.99,0.00027397,2]
[379230022,1755199855652,-290.7061,0.00027397,7]
[379230023,1755199855661,-1873.6,0.00027397,2]
[379230024,1755199855670,-1725.49,0.00027397,2]
[379230025,1755199855680,-290.7061,0.00027397,7]
[379230026,1755199855689,-610.84,0.00027397,2]
[379230027,1755199855698,-290.7061,0.00027397,7]
[379230028,1755199855707,-290.7061,0.00027397,7]
[379230029,1755199855716,-290.7061,0.00027397,7]
[379230030,1755199855726,-290.7061,0.00027397,7]
[379230031,1755199855735,-400.0,0.00027397,2]
[379230032,1755199855744,-400.0,0.00027397,2]
[379230033,1755199855753,-150.0,0.00027397,2]
[379230034,1755199855763,-901.39,0.00027397,2]
[379230035,1755199855772,-463.70491804,0.00027397,2]
[379230036,1755199855781,-754.4,0.00027397,2]
[379230037,1755199855790,-400.0,0.00027397,2]
[379230038,1755199855800,-400.0,0.00027397,2]
[379230039,1755199855809,-500.0,0.00027397,2]
[379230040,1755199855819,-2110.6,0.00027397,2]
[379230041,1755199855829,-408.16,0.00027397,2]
[379230042,1755199855839,-626.05,0.00027397,2]
[379230043,1755199855849,-513.38,0.00027397,2]
[379230044,1755199855860,-200.0,0.00027397,2]
[379230045,1755199855869,-400.0,0.00027397,2]
[379230046,1755199855878,-1813.2,0.00027397,2]
[379230047,1755199855887,-400.0,0.00027397,2]
[379230048,1755199855897,-150.0,0.00027397,2]
[379230049,1755199855906,-400.0,0.00027397,2]
[379230050,1755199855917,-400.0,0.00027397,2]
[379230051,1755199855926,-556.72,0.00027397,2]
[379230052,1755199855936,-256.72141881,0.00027397,2]
[379230053,1755199855945,-2339.01,0.00027397,2]
[379230054,1755199855954,-473.89,0.00027397,2]
[379230055,1755199855963,-400.0,0.00027397,2]
[379230056,1755199855973,-400.0,0.00027397,2]
[379230057,1755199855982,-400.0,0.00027397,2]
[379230058,1755199855991,-1464.87,0.00027397,2]
[379230059,1755199856001,-948.99,0.00027397,2]
[379230060,1755199856010,-2073.37,0.00027397,2]
[379230061,1755199856019,-400.0,0.00027397,2]
[379230062,1755199856028,-1174.37,0.00027397,2]
[379230063,1755199856038,-224.5991772,0.00027397,2]
[379230064,1755199856047,-2165.9,0.00027397,2]
[379230065,1755199856056,-400.0,0.00027397,2]
[379230066,1755199856065,-400.0,0.00027397,2]
[379230067,1755199856074,-400.0,0.00027397,2]
[379230068,1755199856083,-400.0,0.00027397,2]
[379230069,1755199856093,-400.0,0.00027397,2]
[379230070,1755199856102,-400.0,0.00027397,2]
[379230071,1755199856111,-400.0,0.00027397,2]
[379230072,1755199856120,-400.0,0.00027397,2]
[379230073,1755199856130,-400.0,0.00027397,2]
[379230074,1755199856140,-446.9,0.00027397,2]
[379230075,1755199856149,-400.0,0.00027397,2]
[379230076,1755199856159,-3764.18,0.00027397,2]
[379230077,1755199856168,-470.47,0.00027397,2]
[379230078,1755199856178,-400.0,0.00027397,2]
[379230079,1755199856187,-478.21,0.00027397,2]
[379230080,1755199856197,-1211.46,0.00027397,2]
[379230081,1755199856206,-951.63,0.00027397,2]
[379230082,1755199856215,-372.6941803,0.00027397,2]
[379230083,1755199856224,-589.33,0.00027397,2]
[379230084,1755199856233,-959.04,0.00027397,2]
[379230085,1755199856541,-1903.89,0.00027397,2]
[379230086,1755199856551,-5484.5,0.00027397,2]
[379230087,1755199856560,-460.86,0.00027397,2]
[379230088,1755199856570,-400.0,0.00027397,2]
[379230089,1755199856579,-1082.44,0.00027397,2]
[379230090,1755199856589,-1013.23,0.00027397,2]
[379230091,1755199856598,-400.0,0.00027397,2]
[379230092,1755199856607,-400.0,0.00027397,2]
[379230093,1755199856616,-229.72419692,0.00027397,2]
[379230094,1755199856625,-400.0,0.00027397,2]
[379230095,1755199856636,-1413.94,0.00027397,2]
[379230096,1755199856645,-400.0,0.00027397,2]
[379230097,1755199856654,-400.0,0.00027397,2]
[379230098,1755199856664,-1762.73,0.00027397,2]
[379230099,1755199856673,-2653.72,0.00027397,2]
[379230100,1755199856682,-400.0,0.00027397,2]
[379230101,1755199856692,-400.0,0.00027397,2]
[379230102,1755199856701,-1561.91,0.00027397,2]
[379230103,1755199856711,-151.0,0.00027397,7]
[379230104,1755199856720,-1218.86,0.00027397,2]
[379230105,1755199856730,-151.0,0.00027397,7]
[379230106,1755199856739,-704.96,0.00027397,2]
[379230107,1755199856749,-151.0,0.00027397,7]
[379230108,1755199856758,-151.0,0.00027397,7]
[379230109,1755199856768,-151.0,0.00027397,7]
[379230110,1755199856777,-400.0,0.00027397,2]
[379230111,1755199856787,-400.0,0.00027397,2]
[379230112,1755199856796,-400.0,0.00027397,2]
[379230113,1755199856805,-485.4,0.00027397,2]
[379230114,1755199856815,-400.0,0.00027397,2]
[379230115,1755199856825,-151.0,0.00027397,7]
[379230116,1755199856835,-151.0,0.00027397,7]
[379230117,1755199856844,-400.0,0.00027397,2]
[379230118,1755199856853,-3432.18,0.00027397,2]
[379230119,1755199856863,-1875.37,0.00027397,2]
[379230120,1755199856872,-151.0,0.00027397,7]
[379230121,1755199856882,-208.210603,0.00027397,7]
[379230122,1755199856891,-1088.1,0.00027397,2]
[379230123,1755199856901,-400.0,0.00027397,2]
[379230124,1755199856910,-5549.41,0.00027397,2]
[379230125,1755199856920,-400.0,0.00027397,2]
[379230126,1755199856929,-401.62567285,0.00027397,2]
[379230127,1755199856943,-418.38,0.00027397,2]
[379230128,1755199856952,-1168.58,0.00027397,2]
[379230129,1755199856961,-400.0,0.00027397,2]
[379230130,1755199856971,-447.15,0.00027397,7]
[379230131,1755199856980,-447.15,0.00027397,7]
[379230132,1755199856989,-400.0,0.00027397,2]
[379230133,1755199856998,-400.0,0.00027397,2]
[379230134,1755199857007,-447.15,0.00027397,7]
[379230135,1755199857017,-447.15,0.00027397,7]
[379230136,1755199857026,-400.0,0.00027397,2]
[379230137,1755199857035,-447.15,0.00027397,7]
[379230138,1755199857044,-447.15,0.00027397,7]
[379230139,1755199857053,-1079.85,0.00027397,2]
[379230140,1755199857062,-400.0,0.00027397,2]
[379230141,1755199857072,-1062.07,0.00027397,2]
[379230142,1755199857081,-5710.74,0.00027397,2]
[379230143,1755199857090,-1547.49,0.00027397,2]
[379230144,1755199857099,-447.15,0.00027397,7]
[379230145,1755199857108,-447.15,0.00027397,7]
[379230146,1755199857118,-447.15,0.00027397,7]
[379230147,1755199857127,-401.37302665,0.00027397,2]
[379230148,1755199857136,-447.15,0.00027397,7]
[379230149,1755199857145,-400.0,0.00027397,2]
[379230150,1755199857155,-447.15,0.00027397,7]
[379230151,1755199857164,-2944.61,0.00027397,2]
[379230152,1755199857173,-400.0,0.00027397,2]
[379230153,1755199857182,-447.15,0.00027397,7]
[379230154,1755199857191,-400.0,0.00027397,2]
[379230155,1755199857200,-708.52,0.00027397,2]
[379230156,1755199857209,-400.0,0.00027397,2]
[379230157,1755199857219,-400.0,0.00027397,2]
[379230158,1755199857228,-525.66,0.00027397,2]
[379230159,1755199857238,-400.0,0.00027397,2]
[379230160,1755199857247,-1826.55,0.00027397,2]
[379230161,1755199857257,-3433.9,0.00027397,2]
[379230162,1755199857270,-400.0,0.00027397,2]
[379230163,1755199857280,-829.71,0.00027397,2]
[379230164,1755199857293,-4123.57,0.00027397,2]
[379230165,1755199857304,-572.593292,0.00027397,7]
[379230166,1755199857316,-400.0,0.00027397,2]
[379230167,1755199857327,-4496.91,0.00027397,2]
[379230168,1755199857338,-675.57,0.00027397,2]
[379230169,1755199857362,-572.593292,0.00027397,7]
[379230170,1755199857373,-868.2,0.00027397,2]
[379230171,1755199857384,-572.593292,0.00027397,7]
[379230172,1755199857394,-811.69,0.00027397,2]
[379230173,1755199857405,-572.593292,0.00027397,7]
[379230174,1755199857414,-572.593292,0.00027397,7]
[379230175,1755199857424,-1239.99,0.00027397,2]
[379230176,1755199857434,-572.593292,0.00027397,7]
[379230177,1755199857445,-400.0,0.00027397,2]
[379230178,1755199857455,-400.0,0.00027397,2]
[379230179,1755199857465,-400.0,0.00027397,2]